Cogmind - Beta 17.1 @@@ ROGUE MODE // 2026.09.11 @ 22:57:54 Player: Zaje Result: Destroyed by X-67 Chaingunner with Minigun Performance ------------- Evolutions (3) 1500 Regions Visited (7) 1400 Robots Destroyed (45) 225 Value Destroyed (968) 968 Prototype IDs (26) 520 Alien Tech Used (0) 0 Bonus (800) 800 TOTAL SCORE: 5413 Bonus ------- Entered DSFs 500 Aligned with FarCom 300 Cogmind --------- Core Integrity 0/700 Matter 213/300 Energy 100/100 System Corruption 0% Temperature Cool (0) Movement Core (350) Ox6 Location -7/DSF Parts ------- > --- POWER (1) -------- (None) > --- PROPULSION (5) --- (None) > --- UTILITY (5) ------ Large Storage Unit Terrain Scan Processor Hacking Suite > --- WEAPON (2) ------- Mini Grenade Launcher > --- INVENTORY (15) --- Light Nuclear Core Improved VTOL Module Improved VTOL Module Large Storage Unit Improved Signal Interpreter Modified TNC Improved Light Armor Plating Hacking Suite Hacking Suite Hacking Suite System Shield Peak State ------------ > --- POWER ------------ Cooled Ion Engine > --- PROPULSION ------- Light Treads Light Treads Light Treads Light Treads Aluminum Leg > --- UTILITY ---------- Large Storage Unit Terrain Scan Processor Improved Targeting Computer Hacking Suite Hacking Suite > --- WEAPON ----------- Heavy Assault Rifle Gauss Rifle > --- INVENTORY -------- Improved Ion Engine Light Nuclear Core Improved VTOL Module Improved VTOL Module Improved Heat Sink Small Storage Unit Large Storage Unit Improved Signal Interpreter Modified TNC Light Armor Plating Improved Light Armor Plating System Shield Advanced Beam Cannon Grenade Launcher Mini Grenade Launcher [Rating: 29] Favorites ----------- Power Improved Ion Engine Engine Improved Ion Engine Power Core Light Nuclear Core Propulsion Aluminum Leg Treads Light Treads Leg Aluminum Leg Flight Unit Improved VTOL Module Utility Large Storage Unit Device Improved Terrain Scanner Storage Large Storage Unit Processor Terrain Scan Processor Hackware Hacking Suite Weapon Light Assault Rifle Energy Gun Spread Laser Energy Cannon Advanced Beam Cannon Ballistic Gun Light Assault Rifle Launcher Grenade Launcher Special Weapon Mining Laser Build | -11 -10 -10 -10 -9 -8 -7 -7 ------- Run | Yrd Mat Min Exi Min Mat Fac DSF Slots Evolved 6 | . . . . . 4 2 . Power . | . . . . . . . . Propulsion 3 | . . . . . 2 1 . Utility 3 | . . . . . 2 1 . Weapon . | . . . . . . . . Parts Attached 42 | 7 11 2 1 . 19 1 1 Power 6 | 1 2 . 1 . 2 . . Engine 5 | 1 2 . 1 . 1 . . Core 1 | . . . . . 1 . . Reactor . | . . . . . . . . Propulsion 13 | 2 3 . . . 8 . . Treads 9 | 2 1 . . . 6 . . Leg 3 | . 2 . . . 1 . . Wheel . | . . . . . . . . Hover . | . . . . . . . . Flight 1 | . . . . . 1 . . Utility 7 | 2 1 . . . 3 1 . Device 1 | 1 . . . . . . . Storage 2 | 1 1 . . . . . . Processor 2 | . . . . . 2 . . Hackware 2 | . . . . . 1 1 . Protection . | . . . . . . . . Artifact . | . . . . . . . . Weapon 16 | 2 5 2 . . 6 . 1 Energy Gun 1 | . . . . . 1 . . Energy Cannon 1 | . . . . . 1 . . Ballistic Gun 10 | 2 4 1 . . 3 . . Ballistic Cannon . | . . . . . . . . Launcher 3 | . 1 1 . . . . 1 Special Weapon 1 | . . . . . 1 . . Impact Weapon . | . . . . . . . . Slashing Weapon . | . . . . . . . . Piercing Weapon . | . . . . . . . . Special Melee Weapon . | . . . . . . . . Unidentified Prototypes 3 | . . . . . 3 . . Parts Lost 16 | . . . . . 6 . 10 Power 1 | . . . . . . . 1 Propulsion 6 | . . . . . 1 . 5 Utility 2 | . . . . . . . 2 Weapon 7 | . . . . . 5 . 2 Highest Loss Streak 5 | . . . . . 4 . 5 To Critical Strikes . | . . . . . . . . Average Backups 10 | 3 6 9 12 10 11 14 12 Power . | . 1 1 . . . 2 1 Propulsion 1 | 1 1 1 1 1 . 2 2 Utility 4 | . . 3 3 4 6 7 7 Weapon 4 | . 3 4 6 5 4 3 1 Tool/Special . | . . . . . . . . Unused Backups 14 | . 2 . 1 . . . 11 Power 3 | . 2 . 1 . . . . Propulsion 1 | . . . . . . . 1 Utility 10 | . . . . . . . 10 Weapon . | . . . . . . . . Tool/Special . | . . . . . . . . Average Slot Usage (%) 91 | . 99 100 73 100 91 92 84 Engine 11 | . 14 14 14 14 8 7 6 Treads 12 | . 19 . . . 15 30 23 Leg 15 | . 8 28 28 28 12 5 4 Device 8 | . 14 14 14 14 1 . . Storage 11 | . 14 14 14 14 9 7 7 Processor 7 | . . . . . 17 15 14 Hackware 3 | . . . . . 7 8 12 Ballistic Gun 15 | . 27 20 2 28 8 15 11 Special Weapon 1 | . . . . . 5 . . Peak Build Rating 29 | 9 11 11 11 12 24 29 29 Average Rating 14 | 6 9 11 9 11 18 25 24 On Entrance 13 | . 9 11 11 11 12 24 29 Avg Prop Armor Cover (%) 8 | . . . . . 9 4 4 Naked Turns . | . . . . . . . . Heaviest Build 35 | 13 30 32 30 30 35 35 35 Greatest Support 80 | 40 40 20 20 20 80 80 80 Greatest Overweight (x) 6 | . 1 1 1 1 2 . 6 Average Overweight (x) . | . . 1 1 1 . . . Largest Inventory Capacity 15 | 8 15 15 15 15 15 15 15 Average Capacity 13 | 7 9 15 15 15 15 15 15 Most Carried 15 | 5 9 10 13 11 15 15 15 Average Carried 10 | 3 6 9 12 10 11 14 12 Final Capacity 15 | 8 15 15 15 15 15 15 15 Final Carried 15 | 5 9 10 10 11 15 15 11 Class Distribution -------------------- 66% | Mutant 19% | Scavenger-Mutant 11% | Skirmisher Dominant Class ---------------- Mutant | -10/Materials Mutant | -10/Mines Mutant | -10/Exiles Skirmisher | -9/Mines Mutant | -8/Materials Scavenger-Mutant | -7/Factory Scavenger-Mutant | -7/DSF Resources | -11 -10 -10 -10 -9 -8 -7 -7 ----------- Run | Yrd Mat Min Exi Min Mat Fac DSF Matter Collected 1275 | 217 394 183 . 96 385 . . Remotely . | . . . . . . . . Salvage Created 1140 | 34 466 168 . . 415 . 57 Parts 96 | 7 44 11 . . 34 . . Haulers Intercepted 3 | . 2 . . . 1 . . Recyclers Shooed . | . . . . . . . . Parts Field Recycled . | . . . . . . . . Retrieved Matter . | . . . . . . . . Parts Self-Destructed . | . . . . . . . . Prevented . | . . . . . . . . Parts Restored . | . . . . . . . . Kills | -11 -10 -10 -10 -9 -8 -7 -7 ------- Run | Yrd Mat Min Exi Min Mat Fac DSF Combat Hostiles Destroyed 32 | . 13 7 . . 10 . 2 Guns 23 | . 10 5 . . 8 . . Cannons 2 | . . . . . 2 . . AOE 7 | . 3 2 . . . . 2 Classes Destroyed 12 | 1 7 1 . . 2 . 1 Worker 5 | . 5 . . . . . . Builder 2 | . 1 . . . 1 . . Tunneler 2 | 2 . . . . . . . Hauler 3 | . 2 . . . 1 . . Operator 1 | . 1 . . . . . . Watcher 1 | . 1 . . . . . . Swarmer 15 | . 8 3 . . 4 . . Grunt 10 | . 5 3 . . 2 . . Sentry 3 | . . . . . 3 . . Specialist 2 | . . . . . . . 2 Hunter 1 | . . . . . 1 . . Assembled 1 | . . 1 . . . . . Best Kill Streak 7 | 1 7 3 . . 3 . 2 Combat Bots Only 3 | . 3 3 . . 3 . 2 Max Kills in Single Turn 3 | 1 3 2 . . 2 . 1 Gunslinging 1 | . . . . . 1 . . Exploded 2 | . 2 1 . . . . 1 Melee . | . . . . . . . . Uniques/NPCs Destroyed . | . . . . . . . . Combat | -11 -10 -10 -10 -9 -8 -7 -7 -------- Run | Yrd Mat Min Exi Min Mat Fac DSF Hostile Shots Fired 237 | . 81 24 . . 83 . 49 Missed 54 | . 27 5 . . 16 . 6 Hits 183 | . 54 19 . . 67 . 43 Projectile 183 | . 54 19 . . 67 . 43 Critical Strikes 5 | . 1 1 . . 2 . 1 Damage Taken 3361 | . 537 296 . . 1102 . 1426 Core 997 | . 67 102 . . 114 . 714 Absorbed by Shields . | . . . . . . . . Core Remaining (%) 70 | 100 . . . 32 79 . . Volleys Fired 167 | 6 54 20 . . 67 . 20 Largest 2 | 2 2 2 . . 2 . 2 Hottest 133 | 40 50 50 . . 133 . 51 Shots Fired 276 | 12 108 35 . . 98 . 23 Gun 246 | 12 103 31 . . 82 . 18 Cannon 4 | . . . . . 4 . . Launcher 14 | . 5 4 . . . . 5 Special 12 | . . . . . 12 . . Kinetic 233 | 12 103 31 . . 69 . 18 Thermal 29 | . . . . . 29 . . Explosive 14 | . 5 4 . . . . 5 Electromagnetic . | . . . . . . . . Robot Hit Streak 12 | 4 12 8 . . 11 . 8 Robot Miss Streak 7 | 2 3 2 . . 7 . 2 Penetration Max . | . . . . . . . . Secondary Targets 2 | . . . . . 2 . . Max Gunslinging Chain 1 | . . . . . 1 . . Shots Hit Robots 178 | 9 64 22 . . 64 . 19 Core Hits 107 | 3 41 15 . . 39 . 9 Critical Kills . | . . . . . . . . Critical Parts Destroyed . | . . . . . . . . Critical Strikes . | . . . . . . . . Melee Attacks . | . . . . . . . . Impact . | . . . . . . . . Slashing . | . . . . . . . . Piercing . | . . . . . . . . Sneak Attacks . | . . . . . . . . Combat Hostiles . | . . . . . . . . Follow-up Attacks . | . . . . . . . . Damage Inflicted 2713 | 75 1026 295 . 1 699 . 617 Guns 1658 | 75 529 162 . . 658 . 234 Cannons 41 | . . . . . 41 . . Explosions 1003 | . 487 133 . . . . 383 Melee . | . . . . . . . . Ramming 11 | . 10 . . 1 . . . Kinetic 1469 | 75 529 162 . . 469 . 234 Thermal 230 | . . . . . 230 . . Explosive 1003 | . 487 133 . . . . 383 Electromagnetic . | . . . . . . . . Impact . | . . . . . . . . Slashing . | . . . . . . . . Piercing . | . . . . . . . . Highest Corruption 7 | . 4 4 4 4 7 . . Average Corruption 4 | . 3 4 4 4 7 . . Corruption Purged . | . . . . . . . . Corruption Blocked . | . . . . . . . . Effects 107 | . 29 12 28 12 26 . . Message Errors 23 | . 4 . 10 2 7 . . Matter Fused 25 | . 8 3 5 6 3 . . Heat Flow Errors 16 | . 2 2 6 1 5 . . Energy Discharges 14 | . 5 2 3 . 4 . . Parts Rejected 3 | . 1 . . . 2 . . Parts Fused 1 | . . . 1 . . . . Data Loss (minor) 14 | . 5 4 . 3 2 . . Data Loss (major) 4 | . 2 . 2 . . . . Misfires 2 | . . 1 . . 1 . . Alerts 4 | . 2 . 1 . 1 . . Weapon Failures 1 | . . . . . 1 . . Overload Shots . | . . . . . . . . Overflow Damage 17 | . 11 . . . . . 6 Projectiles . | . . . . . . . . Explosions 17 | . 11 . . . . . 6 Melee . | . . . . . . . . Knockbacks . | . . . . . . . . Impact . | . . . . . . . . Kinetic . | . . . . . . . . Secondary . | . . . . . . . . Self-Inflicted Damage 342 | . 47 70 . . . . 225 Shots 8 | . 1 2 . . . . 5 Rammed . | . . . . . . . . Targets Rammed 2 | . 1 . . 1 . . . Kicked 2 | . 1 . . 1 . . . Crushed . | . . . . . . . . Highest Temperature 342 | . 266 271 270 280 342 . . Average Temperature 87 | . 38 49 102 145 118 . . Received Heat Transfer 606 | . 96 123 . . 369 . 18 Effects 4 | . . . 1 . 3 . . Energy Bleed 1 | . . . . . 1 . . Interference 3 | . . . 1 . 2 . . Siege Activations . | . . . . . . . . Martial Activations . | . . . . . . . . Shielding Activations . | . . . . . . . . Robots Disrupted . | . . . . . . . . Combat Hostiles . | . . . . . . . . Robots Corrupted . | . . . . . . . . Combat Hostiles . | . . . . . . . . Parts Fried . | . . . . . . . . Impact Corruptions . | . . . . . . . . Robots Melted . | . . . . . . . . Combat Hostiles . | . . . . . . . . Parts Melted 1 | . . . . . 1 . . Heat Transferred 309 | . . . . . 309 . . Parts Sabotaged . | . . . . . . . . Parts Stolen . | . . . . . . . . Parts Stripped . | . . . . . . . . Power Chain Reactions . | . . . . . . . . Alert | -11 -10 -10 -10 -9 -8 -7 -7 ------- Run | Yrd Mat Min Exi Min Mat Fac DSF Maximum Alert Level . | . . . . . . . . Low Security (%) 100 | 100 100 100 . 100 100 100 100 Level 1 . | . . . . . . . . Level 2 . | . . . . . . . . Level 3 . | . . . . . . . . Level 4 . | . . . . . . . . Level 5 . | . . . . . . . . High Security . | . . . . . . . . Max Security . | . . . . . . . . Peak Influence 199 | 5 199 146 . . 198 88 47 Initial 88 | . . 53 . . . 88 . Average 34 | . 65 49 . . 21 20 7 Influence Increases 1091 | 10 462 198 . . 329 5 87 Destroy 0b10 Robot/C 620 | . 260 120 . . 200 . 40 Destroy 0b10 Robot/NC 70 | 10 50 . . . 10 . . Destroy Leader 158 | . 66 30 . . 62 . . Successful Hack 11 | . 6 . . . . 5 . Disable Machine 60 | . 30 15 . . 15 . . Destroy Structure 82 | . 20 33 . . 12 . 17 Lose Combat Pursuer 90 | . 30 . . . 30 . 30 Influence Decreases 1044 | 10 324 336 . . 133 201 40 Entered New Map 193 | . . 85 . . . 108 . Time Decay 778 | 10 324 251 . . 100 93 . Lost Part 73 | . . . . . 33 . 40 Squads Dispatched 8 | . 4 . . . 2 . 2 Investigation 3 | . 2 . . . 1 . . Extermination . | . . . . . . . . Reinforcement 5 | . 2 . . . 1 . 2 Assault . | . . . . . . . . Garrison . | . . . . . . . . Intercept . | . . . . . . . . Searches Triggered . | . . . . . . . . Construction Impeded . | . . . . . . . . Haulers Reinforced . | . . . . . . . . Active Scanning Responses . | . . . . . . . . Cargo Convoy Interrupts . | . . . . . . . . Stealth | -11 -10 -10 -10 -9 -8 -7 -7 --------- Run | Yrd Mat Min Exi Min Mat Fac DSF Distress Signals 1 | . . . . . 1 . . Communications Jammed . | . . . . . . . . Distress Signals . | . . . . . . . . Times Spotted 50 | . 27 7 . . 12 . 4 Peak Tracking Total 6 | . 6 3 . . 4 . 3 Tactical Retreats 6 | . 2 . . . 2 . 2 Traps | -11 -10 -10 -10 -9 -8 -7 -7 ------- Run | Yrd Mat Min Exi Min Mat Fac DSF Traps Triggered 6 | . 5 . . . 1 . . Indirectly . | . . . . . . . . Trap Hack Attempts . | . . . . . . . . Triggered . | . . . . . . . . Disarmed . | . . . . . . . . Reprogrammed . | . . . . . . . . Reused . | . . . . . . . . Traps Extracted . | . . . . . . . . Installed . | . . . . . . . . Triggered . | . . . . . . . . Machines | -11 -10 -10 -10 -9 -8 -7 -7 ---------- Run | Yrd Mat Min Exi Min Mat Fac DSF Machines Disabled 5 | . 3 1 . . 1 . . Max in Single Turn 1 | . 1 1 . . 1 . . Garrison Access 1 | . . . . . . 1 . Machines Repaired . | . . . . . . . . Machines Dismantled . | . . . . . . . . Machines Sabotaged . | . . . . . . . . Overloaded Fab Kills . | . . . . . . . . Hacking | -11 -10 -10 -10 -9 -8 -7 -7 --------- Run | Yrd Mat Min Exi Min Mat Fac DSF Machines Accessed 10 | . 1 . 5 . 1 3 . Terminals 4 | . 1 . . . 1 2 . Fabricators . | . . . . . . . . Repair Stations . | . . . . . . . . Recycling Units . | . . . . . . . . Scanalyzers . | . . . . . . . . Garrison Access 1 | . . . . . . 1 . Total Hacks 63 | . 1 . 50 . 4 8 . Successful 58 | . 1 . 50 . 1 6 . Failed 5 | . . . . . 3 2 . Catastrophic . | . . . . . . . . Database Lockouts . | . . . . . . . . Manual 10 | . 1 . 1 . 4 4 . Terminals 11 | . 1 . . . 4 6 . Fabricators . | . . . . . . . . Repair Stations . | . . . . . . . . Recycling Units . | . . . . . . . . Scanalyzers . | . . . . . . . . Garrison Access 2 | . . . . . . 2 . Terminal Hacks 57 | . 1 . 50 . 1 5 . Record 51 | . . . 49 . . 2 . Robot Analysis 1 | . 1 . . . . . . Open DSF 1 | . . . . . . 1 . Alert Level 2 | . . . . . 1 1 . Hauler Manifests 1 | . . . . . . 1 . Proto ID Catalog 1 | . . . 1 . . . . Fabricator Hacks . | . . . . . . . . Repair Station Hacks . | . . . . . . . . Recycling Unit Hacks . | . . . . . . . . Scanalyzer . | . . . . . . . . Garrison Access Hacks 1 | . . . . . . 1 . Seal Access 1 | . . . . . . 1 . Unauthorized Hacks . | . . . . . . . . Terminals . | . . . . . . . . Fabricators . | . . . . . . . . Repair Stations . | . . . . . . . . Recycling Units . | . . . . . . . . Scanalyzers . | . . . . . . . . Garrison Access . | . . . . . . . . Data Cores Recovered . | . . . . . . . . Used . | . . . . . . . . Hacking Detections 5 | . 1 . . . 1 3 . Full Trace Events . | . . . . . . . . Feedback Events . | . . . . . . . . Feedback Blocked . | . . . . . . . . Robot Schematics Acquired . | . . . . . . . . Robots Built . | . . . . . . . . Authchips . | . . . . . . . . Time . | . . . . . . . . Total Robot Build Rating . | . . . . . . . . Part Schematics Acquired . | . . . . . . . . Parts Built . | . . . . . . . . Authchips . | . . . . . . . . Time . | . . . . . . . . Total Part Build Rating . | . . . . . . . . Part Studies Acquired . | . . . . . . . . Parts Repaired . | . . . . . . . . Time . | . . . . . . . . Parts Recycled . | . . . . . . . . Recycled Matter . | . . . . . . . . Retrieved Matter . | . . . . . . . . Retrieved Components . | . . . . . . . . Parts Scanalyzed . | . . . . . . . . Part Schematics Acquired . | . . . . . . . . Parts Damaged . | . . . . . . . . Bothacking | -11 -10 -10 -10 -9 -8 -7 -7 ------------ Run | Yrd Mat Min Exi Min Mat Fac DSF Used RIF Installer . | . . . . . . . . Robots Hacked . | . . . . . . . . Non-combat . | . . . . . . . . Combat . | . . . . . . . . Robot Hacks Applied . | . . . . . . . . Relay Couplers Released . | . . . . . . . . Fabnet Peak Effective % . | . . . . . . . . Robots Rewired . | . . . . . . . . Allies Hacked . | . . . . . . . . Hacks Repelled . | . . . . . . . . Allies | -11 -10 -10 -10 -9 -8 -7 -7 -------- Run | Yrd Mat Min Exi Min Mat Fac DSF Total Allies . | . . . . . . . . Largest Group . | . . . . . . . . Highest-Rated Group . | . . . . . . . . Highest-Rated Ally . | . . . . . . . . Total Orders . | . . . . . . . . Ally Attacks . | . . . . . . . . Total Damage . | . . . . . . . . Kills . | . . . . . . . . Allies Corrupted . | . . . . . . . . Allies Melted . | . . . . . . . . Intel | -11 -10 -10 -10 -9 -8 -7 -7 ------- Run | Yrd Mat Min Exi Min Mat Fac DSF Active Infowar (turns) 4176 | 83 1861 645 1039 . 548 . . Terrain 4176 | 83 1861 645 1039 . 548 . . Robot Analysis Total 1 | . 1 . . . . . . Derelict Logs Recovered 3 | . . 2 . 1 . . . Drone Launches . | . . . . . . . . Drone Recoveries . | . . . . . . . . Exploration | -11 -10 -10 -10 -9 -8 -7 -7 ------------- Run | Yrd Mat Min Exi Min Mat Fac DSF Turns Passed 7723 | 172 1861 645 1236 457 2739 423 190 Spaces Moved 3367 | 92 832 309 647 240 902 263 82 Core 6 | 5 . . . . . . 1 Treads 1346 | 87 538 . . . 377 263 81 Legs 2015 | . 294 309 647 240 525 . . Wheels . | . . . . . . . . Hover . | . . . . . . . . Flight . | . . . . . . . . Fastest Speed 50 | 50 120 190 190 190 160 160 160 Average Speed 176 | 154 164 190 190 190 180 160 162 Slowest Speed 350 | 160 190 190 190 190 260 160 350 Overloaded Moves . | . . . . . . . . Propulsion Burnouts . | . . . . . . . . Robots Hopped . | . . . . . . . . Potential Cave-ins . | . . . . . . . . Cave-ins Triggered 1 | . . . . . 1 . . Exploration Rate (%) 45 | 4 74 72 93 45 25 6 44 Regions Visited 7 Branch Regions 3 Pre-discovered Areas 3 | . . 2 1 . . . . Known Exits Taken 1 | . . . . . . 1 . Unknown Exits Taken 6 | 1 1 1 1 1 1 . . Scrap Searched 4 | . . 1 . 3 . . . Spaces Dug 12 | . . . . . 12 . . Terrain Destroyed 91 | . 21 38 . . 12 . 20 Melee . | . . . . . . . . Projectile 12 | . . . . . 12 . . AOE 79 | . 21 38 . . . . 20 Terrain Rammed . | . . . . . . . . Walls Destroyed . | . . . . . . . . Machines Disabled . | . . . . . . . . Actions | -11 -10 -10 -10 -9 -8 -7 -7 --------- Run | Yrd Mat Min Exi Min Mat Fac DSF Total 4869 | 109 1238 337 656 241 1904 265 119 Wait 1215 | . 319 4 . . 885 . 7 Move 3360 | 91 831 308 646 239 901 262 82 Hop . | . . . . . . . . Pick Up 35 | 5 11 . 2 1 12 1 3 Fast Attach 17 | 7 . . . . 9 1 . Attach 19 | . 3 . 3 . 11 1 1 Detach 9 | . 1 . 3 . 5 . . Swap 21 | . 8 5 1 . 7 . . Drop 24 | . 10 . 1 . 7 . 6 Fire 167 | 6 54 20 . . 67 . 20 Melee . | . . . . . . . . Ram . | . . . . . . . . Kick 2 | . 1 . . 1 . . . Crush . | . . . . . . . . Escape Stasis . | . . . . . . . . Rewire . | . . . . . . . . Trap . | . . . . . . . . Miscellaneous . | . . . . . . . . Route ------- -11/Scrapyard -10/Materials (discovered 3 exits: [*Mat x2] / [*Min]) -10/Mines -10/Exiles (discovered 2 exits: *Min x2) -9/Mines -8/Materials -7/Factory -7/DSF History --------- Turn | Location | Event 9 | -11/Scrapyard | Discovered new exit (range 15) 173 | -11/Scrapyard | Entered Materials 307 | -10/Materials | Build established: Mutant 703 | -10/Materials | Discovered new exit (range 12) 1431 | -10/Materials | Discovered new exit (range 7) 1710 | -10/Materials | Discovered new exit (range 13) 2034 | -10/Materials | Entered Mines 2083 | -10/Mines | Assembled infested the area 2088 | -10/Mines | Assisted by a Guerilla fighting off Assembled 2135 | -10/Mines | Found a hidden stash of uninstalled traps 2419 | -10/Mines | Core integrity fell below 50% 2438 | -10/Mines | Learned location of Mines (-9) 2475 | -10/Mines | Learned location of Zion (-6) 2666 | -10/Mines | Deemed a non-threat by the Exiles lab entrance 2668 | -10/Mines | Discovered new exit (range 5) 2679 | -10/Mines | Entered Exiles 2734 | -10/Exiles | Discovered new exit (range 14) 2768 | -10/Exiles | Met 8R-AWN 2813 | -10/Exiles | Met EX-HEX 2904 | -10/Exiles | Met EX-BIN 2949 | -10/Exiles | Aligned with FarCom system 2951 | -10/Exiles | Given EX-Vault access code 3035 | -10/Exiles | Opened EX-Vault 3056 | -10/Exiles | Found Modified TNC 3148 | -10/Exiles | Warned to stay clear of 0b10 Research branches 3273 | -10/Exiles | Met EX-DEC 3445 | -10/Exiles | Visited The Gauntlet 3879 | -10/Exiles | Discovered new exit (range 14) 3915 | -10/Exiles | Left Exiles lab with Modified TNC 3915 | -10/Exiles | Entered Mines 3921 | -9/Mines | Met a Derelict bent on vengeance 4096 | -9/Mines | Learned Materials non-interactive machine intel 4201 | -9/Mines | Build established: Skirmisher 4346 | -9/Mines | Discovered new exit (range 14) 4372 | -9/Mines | Entered Materials 4372 | -8/Materials | Evolved 4 slots: Propulsion x2, Utility x2 4373 | -8/Materials | Loaded intel: 42 non-interactive machine locations 5229 | -8/Materials | Build established: Mutant 6290 | -8/Materials | Crushed by falling debris 6393 | -8/Materials | Lost 4 parts (1n3w) 6662 | -8/Materials | Build established: Scavenger-Mutant 6764 | -8/Materials | Discovered new exit (range 3) 7111 | -8/Materials | Entered Factory 7111 | -7/Factory | Evolved 2 slots: Propulsion x1, Utility x1 7529 | -7/Factory | Identified exit to DSF 7534 | -7/Factory | Entered DSF 7594 | -7/DSF | Additional patrols routed to DSF 7697 | -7/DSF | Lost 5 parts (3n1u1w) 7716 | -7/DSF | Core integrity fell below 50% 7722 | -7/DSF | Core integrity fell below 20% 7724 | -7/DSF | Destroyed by X-67 Chaingunner with Minigun Last Messages --------------- dispatching reinforcements to area. 07657_ Slug penetrates H-61 Shepherd. 07657_ Penetrated by Slug. 07659_ Lgt. Treads destroyed. 07662_ Aluminum Leg destroyed. 07662_ Gauss Rifle destroyed. 07666_ Lgt. Treads destroyed. 07666_ Hacking Suite destroyed. 07666_ Critical hit (Blast). 07674_ Slug penetrates Wall. 07701_ Lgt. Treads destroyed. 07706_ Cld. Ion Engine destroyed. 07708_ Lgt. Treads destroyed. 07708_ Hvy. Assault Rifle destroyed. 07715_ Penetrated by Slug. 07717_ X-67 Chaingunner destroyed. 07717_ Imp. Targeting Computer destroyed. 07718_ Penetrated by Slug. 07719_ X-62 Marksman destroyed. 07723_ Destroyed Hvy. Machine Gun. Map ----- +----------------------------------------------------+ | ????????????????????????????????????? | | ????????????????????????????????????? | | ????????????????????????????????????? | | ????????????????????????????????????? | | ????????????????????????????????????? | | ????????????????????????????????????? | | ????????????????????????????????????? | | ????????????????????????????????????? | | ????????????????????????????????????? | | ????????????????????????????????????? | | ????????????????????????????????????? | | ??????######??###???#???????????????? | | ??????# #? #?!!#???????????????? | | ??????# ## #!!!## ???????????? | | ????### % ??????????? | | ????# ; % gH ??????????? | | ?????#" ?????????? | | ?????##!!% ## "!!!#?? ?????????? | | ??????#!! #?????!!!#?? #?????????? | | ??????### ###????????? ##????????? | | ???????# ##?#?????? !!????????? | | ???????# ##????? !?????????? | | ???????# # ]?????? !?????????? | | ???????# #??????# ###???????? | | ???????# x ##????? [[#???????? | | ???????# @ #????? [[#???????? | | ???????# ######? [[????????? | | ??????## #] #?# #?????????? | | ????###"" ## #!! ### ###???????? | | ????""""" !]* #???????? | | ????"##"" #???????? | | ??????#"""""## # # !!!!!#???????? | | ??????#"""""######### !!!!!#???????? | | ??????####"##???????###"#####???????? | | ?????????#"#??????????###???????????? | | ?????????""#????????????????????????? | | ?????????##?????????????????????????? | | ????????????????????????????????????? | | ????????????????????????????????????? | | ????????????????????????????????????? | | ????????????????????????????????????? | | | | | | | | | | | | | | | | | | | +----------------------------------------------------+ Best States ------------- Heat Dissipation 34 Energy Generation 14 Energy Capacity 280 Matter Stores 300 Matter Capacity 300 Sight Range 16 Terrain Scan Range 16 Terrain Scan Density 85 Evasion (%) 55 Targeting Accuracy 6 Recoil Reduction 4 Offensive Hacking 20 Item Schematics ----------------- None Robot Schematics ------------------ None Fabricated ------------ Nothing Repaired ---------- Nothing Studied --------- None Alien Tech Used ----------------- None Achievements -------------- Librarian Maybe Next Time I'll Detach My Launcher Sixth Sense Challenges ------------ None Game ------ Seed SniperInsulatedWell Manual? 0 Play Time 00:56:17 Cumulative 7.4 hours Start 2026.09.11 @ 21:58:27 End 2026.09.11 @ 22:57:54 Sessions 1 Manual Loads 0 Difficulty Rogue Special Mode None Game No. 19 Rogue 19 Adventurer 0 Explorer 0 Win Type - Total 0 Types 0/0/0/0/0/0/0/0/0/0 Lore% 12 Gallery% 10 Achievement% 11 Wizard Run 0 Options --------- Layout 1 ASCII 0 Keyboard 1 Movement Vi Keybinds 1 Fullscreen 1 Font 32/SmallcapsGlow Map View 50x35 Zoom Use 0% Tactical HUD 1 Map Filters NONE Filters NONE Steam 1 RUN: d8e4273d-ceb2-4434-856c-09e578fdf020